Cogmind - Beta 17 @@@ ROGUE MODE // 2026.07.31 @ 01:29:42 Player: LandRaider Result: Destroyed by 8A-R6L(R) with Subdweller Machine Gun Performance ------------- Evolutions (0) 0 Regions Visited (3) 600 Robots Destroyed (23) 115 Value Destroyed (460) 460 Prototype IDs (0) 0 Alien Tech Used (0) 0 Bonus (0) 0 TOTAL SCORE: 1175 Bonus ------- None Cogmind --------- Core Integrity 0/250 Matter 248/300 Energy 140/140 System Corruption 0% Temperature Cool (0) Movement Treading (160) Location -10/Subcaves Parts ------- > --- POWER (1) -------- Light Deuterium Engine > --- PROPULSION (2) --- Light Treads Light Treads > --- UTILITY (2) ------ Large Storage Unit Improved Terrain Scanner > --- WEAPON (2) ------- Shotgun Barrage Gun > --- INVENTORY (15) --- Subdweller Power Source Subdweller Monowheel Subdweller Monowheel Disposable Heat Sink Subdweller Optics Transport Network Coupler Utility Shielding Scrap Shield Beam Rifle Beam Rifle Subdweller Laser Assault Rifle Light Assault Rifle Peak State ------------ > --- POWER ------------ Light Deuterium Engine > --- PROPULSION ------- Light Treads Light Treads > --- UTILITY ---------- Large Storage Unit Improved Terrain Scanner > --- WEAPON ----------- Shotgun Barrage Gun > --- INVENTORY -------- Subdweller Power Source Subdweller Monowheel Subdweller Monowheel Disposable Heat Sink Subdweller Optics Transport Network Coupler Utility Shielding Scrap Shield Beam Rifle Beam Rifle Subdweller Laser Assault Rifle Light Assault Rifle [Rating: 16] Favorites ----------- Power Ion Engine Engine Ion Engine Propulsion Light Treads Treads Light Treads Leg Aluminum Leg Wheel Wheel Utility Large Storage Unit Device Terrain Scanner Storage Large Storage Unit Weapon Shotgun Energy Gun Beam Rifle Ballistic Gun Shotgun Launcher Grenade Launcher Build | -11 -10 -10 -10 ------- Run | Yrd Mat Min Sub Slots Evolved . | . . . . Power . | . . . . Propulsion . | . . . . Utility . | . . . . Weapon . | . . . . Parts Attached 24 | 5 11 5 3 Power 3 | 1 . 1 1 Engine 3 | 1 . 1 1 Core . | . . . . Reactor . | . . . . Propulsion 6 | 2 2 2 . Treads 2 | . . 2 . Leg 2 | 1 1 . . Wheel 2 | 1 1 . . Hover . | . . . . Flight . | . . . . Utility 5 | 1 3 . 1 Device 3 | . 2 . 1 Storage 2 | 1 1 . . Processor . | . . . . Hackware . | . . . . Protection . | . . . . Artifact . | . . . . Weapon 10 | 1 6 2 1 Energy Gun 2 | . 2 . . Energy Cannon . | . . . . Ballistic Gun 6 | 1 3 1 1 Ballistic Cannon . | . . . . Launcher 2 | . 1 1 . Special Weapon . | . . . . Impact Weapon . | . . . . Slashing Weapon . | . . . . Piercing Weapon . | . . . . Special Melee Weapon . | . . . . Unidentified Prototypes . | . . . . Parts Lost 10 | . 4 5 1 Power 1 | . . 1 . Propulsion 3 | . 1 2 . Utility 2 | . 1 1 . Weapon 4 | . 2 1 1 Highest Loss Streak 4 | . 2 4 1 To Critical Strikes . | . . . . Average Backups 8 | 5 6 8 11 Power 1 | . 1 . 1 Propulsion 2 | 3 4 1 . Utility 1 | . . 1 4 Weapon 3 | 1 1 4 4 Tool/Special . | . . . . Unused Backups 12 | . 1 . 11 Power 1 | . . . 1 Propulsion 2 | . . . 2 Utility 5 | . . . 5 Weapon 4 | . 1 . 3 Tool/Special . | . . . . Average Slot Usage (%) 90 | . 87 96 86 Engine 13 | . 14 13 14 Treads 10 | . . 4 28 Leg 4 | . 19 . . Wheel 11 | . 4 23 . Device 7 | . 8 10 2 Storage 14 | . 14 14 14 Energy Gun 5 | . 5 9 . Ballistic Gun 20 | . 17 17 26 Launcher 1 | . 3 . . Peak Build Rating 16 | 4 10 10 16 Average Rating 8 | 3 6 9 10 On Entrance 5 | . 4 10 8 Avg Prop Armor Cover (%) 10 | 12 10 . . Naked Turns . | . . . . Heaviest Build 33 | 12 32 33 32 Greatest Support 40 | 3 26 40 40 Greatest Overweight (x) 4 | 3 4 1 . Average Overweight (x) . | 2 . . . Largest Inventory Capacity 15 | 8 15 15 15 Average Capacity 13 | 7 8 15 15 Most Carried 15 | 8 8 10 15 Average Carried 8 | 5 6 8 11 Final Capacity 15 | 8 15 15 15 Final Carried 14 | 8 8 8 14 Class Distribution -------------------- 100% | Mutant Dominant Class ---------------- Mutant | -10/Materials Mutant | -10/Mines Mutant | -10/Subcaves Resources | -11 -10 -10 -10 ----------- Run | Yrd Mat Min Sub Matter Collected 841 | 250 265 208 118 Remotely . | . . . . Salvage Created 624 | . 383 167 74 Parts 34 | . 22 6 6 Haulers Intercepted 1 | . 1 . . Recyclers Shooed 1 | . 1 . . Parts Field Recycled . | . . . . Retrieved Matter . | . . . . Parts Self-Destructed 2 | . . . 2 Prevented . | . . . . Parts Restored . | . . . . Kills | -11 -10 -10 -10 ------- Run | Yrd Mat Min Sub Combat Hostiles Destroyed 24 | . 9 13 2 Guns 17 | . 9 6 2 AOE 7 | . . 7 . Classes Destroyed 8 | . 6 1 1 Hauler 1 | . 1 . . Recycler 1 | . 1 . . Operator 1 | . 1 . . Watcher 1 | . 1 . . Swarmer 11 | . 5 6 . Grunt 6 | . 4 2 . Subdweller 2 | . . . 2 Assembled 5 | . . 5 . Best Kill Streak 7 | . 4 7 2 Combat Bots Only 7 | . 3 7 2 Max Kills in Single Turn 5 | . 1 5 1 Gunslinging . | . . . . Exploded 5 | . . 5 . Melee . | . . . . Uniques/NPCs Destroyed . | . . . . Combat | -11 -10 -10 -10 -------- Run | Yrd Mat Min Sub Hostile Shots Fired 175 | . 85 61 29 Missed 62 | . 27 19 16 Hits 113 | . 58 42 13 Projectile 113 | . 58 42 13 AOE 2 | . . . 2 Critical Strikes 1 | . . 1 . Damage Taken 1412 | . 636 445 331 Core 251 | . 99 70 82 Absorbed by Shields . | . . . . Core Remaining (%) 100 | 100 . . . Volleys Fired 84 | . 47 25 12 Largest 2 | . 2 2 2 Hottest 79 | . 70 79 51 Shots Fired 153 | . 87 47 19 Gun 146 | . 86 41 19 Cannon . | . . . . Launcher 7 | . 1 6 . Special . | . . . . Kinetic 112 | . 60 33 19 Thermal 34 | . 26 8 . Explosive 7 | . 1 6 . Electromagnetic . | . . . . Robot Hit Streak 9 | . 9 4 7 Robot Miss Streak 6 | . 6 6 3 Penetration Max . | . . . . Secondary Targets 5 | . 4 1 . Max Gunslinging Chain 1 | . 1 1 . Shots Hit Robots 84 | . 50 25 9 Core Hits 53 | . 21 28 4 Critical Kills . | . . . . Critical Parts Destroyed . | . . . . Critical Strikes 1 | . . 1 . Burn 1 | . . 1 . Melee Attacks . | . . . . Impact . | . . . . Slashing . | . . . . Piercing . | . . . . Sneak Attacks . | . . . . Combat Hostiles . | . . . . Follow-up Attacks . | . . . . Damage Inflicted 1704 | . 812 755 137 Guns 1198 | . 715 346 137 Cannons . | . . . . Explosions 506 | . 97 409 . Melee . | . . . . Ramming . | . . . . Kinetic 890 | . 465 288 137 Thermal 308 | . 250 58 . Explosive 506 | . 97 409 . Electromagnetic . | . . . . Impact . | . . . . Slashing . | . . . . Piercing . | . . . . Highest Corruption . | . . . . Average Corruption . | . . . . Corruption Purged . | . . . . Corruption Blocked . | . . . . Overload Shots . | . . . . Overflow Damage 11 | . . 11 . Projectiles . | . . . . Explosions 11 | . . 11 . Melee . | . . . . Knockbacks . | . . . . Impact . | . . . . Kinetic . | . . . . Secondary . | . . . . Self-Inflicted Damage 72 | . 37 35 . Shots 3 | . 1 2 . Rammed . | . . . . Targets Rammed . | . . . . Kicked . | . . . . Crushed . | . . . . Highest Temperature 186 | . 186 144 . Average Temperature 65 | . 63 70 . Received Heat Transfer 261 | . 210 15 36 Siege Activations . | . . . . Martial Activations . | . . . . Shielding Activations . | . . . . Robots Disrupted . | . . . . Combat Hostiles . | . . . . Robots Corrupted . | . . . . Combat Hostiles . | . . . . Parts Fried . | . . . . Impact Corruptions . | . . . . Robots Melted . | . . . . Combat Hostiles . | . . . . Parts Melted 3 | . 2 1 . Heat Transferred 962 | . 740 222 . Parts Sabotaged . | . . . . Parts Stolen . | . . . . Parts Stripped . | . . . . Power Chain Reactions . | . . . . Alert | -11 -10 -10 -10 ------- Run | Yrd Mat Min Sub Maximum Alert Level . | . . . . Low Security (%) 100 | 100 100 100 . Level 1 . | . . . . Level 2 . | . . . . Level 3 . | . . . . Level 4 . | . . . . Level 5 . | . . . . High Security . | . . . . Max Security . | . . . . Peak Influence 102 | . 92 102 . Initial 22 | . . 22 . Average 21 | . 25 21 . Influence Increases 481 | . 255 226 . Destroy 0b10 Robot/C 340 | . 180 160 . Destroy 0b10 Robot/NC 20 | . 20 . . Destroy Leader 54 | . 24 30 . Successful Hack 28 | . 28 . . Destroy Structure 24 | . 3 21 . Lose Combat Pursuer 15 | . . 15 . Influence Decreases 481 | . 196 235 50 Entered New Map 63 | . . 37 26 Time Decay 352 | . 176 152 24 Lost Part 66 | . 20 46 . Squads Dispatched 1 | . 1 . . Investigation 1 | . 1 . . Extermination . | . . . . Reinforcement . | . . . . Assault . | . . . . Garrison . | . . . . Intercept . | . . . . Searches Triggered . | . . . . Construction Impeded . | . . . . Haulers Reinforced . | . . . . Active Scanning Responses . | . . . . Cargo Convoy Interrupts . | . . . . Stealth | -11 -10 -10 -10 --------- Run | Yrd Mat Min Sub Distress Signals 1 | . 1 . . Communications Jammed . | . . . . Distress Signals . | . . . . Times Spotted 38 | . 15 15 8 Peak Tracking Total 8 | . 4 8 6 Tactical Retreats 3 | . . 2 1 Traps | -11 -10 -10 -10 ------- Run | Yrd Mat Min Sub Traps Triggered 1 | . 1 . . Indirectly . | . . . . Trap Hack Attempts . | . . . . Triggered . | . . . . Disarmed . | . . . . Reprogrammed . | . . . . Reused . | . . . . Traps Extracted . | . . . . Installed . | . . . . Triggered . | . . . . Machines | -11 -10 -10 -10 ---------- Run | Yrd Mat Min Sub Machines Disabled . | . . . . Max in Single Turn . | . . . . Machines Repaired . | . . . . Machines Dismantled . | . . . . Machines Sabotaged . | . . . . Overloaded Fab Kills . | . . . . Hacking | -11 -10 -10 -10 --------- Run | Yrd Mat Min Sub Machines Accessed 3 | . 3 . . Terminals 2 | . 2 . . Fabricators . | . . . . Repair Stations . | . . . . Recycling Units 1 | . 1 . . Scanalyzers . | . . . . Garrison Access . | . . . . Total Hacks 4 | . 4 . . Successful 3 | . 3 . . Failed 1 | . 1 . . Catastrophic 1 | . 1 . . Database Lockouts . | . . . . Manual . | . . . . Terminals 3 | . 3 . . Fabricators . | . . . . Repair Stations . | . . . . Recycling Units 1 | . 1 . . Scanalyzers . | . . . . Garrison Access . | . . . . Terminal Hacks 2 | . 2 . . Transport Status 1 | . 1 . . Zone Layout 1 | . 1 . . Fabricator Hacks . | . . . . Repair Station Hacks . | . . . . Recycling Unit Hacks 1 | . 1 . . Report Inventory 1 | . 1 . . Scanalyzer . | . . . . Garrison Access Hacks . | . . . . Unauthorized Hacks . | . . . . Terminals . | . . . . Fabricators . | . . . . Repair Stations . | . . . . Recycling Units . | . . . . Scanalyzers . | . . . . Garrison Access . | . . . . Data Cores Recovered 1 | . 1 . . Used . | . . . . Hacking Detections 3 | . 3 . . Full Trace Events 1 | . 1 . . Feedback Events . | . . . . Feedback Blocked . | . . . . Robot Schematics Acquired . | . . . . Robots Built . | . . . . Authchips . | . . . . Time . | . . . . Total Robot Build Rating . | . . . . Part Schematics Acquired . | . . . . Parts Built . | . . . . Authchips . | . . . . Time . | . . . . Total Part Build Rating . | . . . . Part Studies Acquired . | . . . . Parts Repaired . | . . . . Time . | . . . . Parts Recycled . | . . . . Recycled Matter . | . . . . Retrieved Matter . | . . . . Retrieved Components . | . . . . Parts Scanalyzed . | . . . . Part Schematics Acquired . | . . . . Parts Damaged . | . . . . Bothacking | -11 -10 -10 -10 ------------ Run | Yrd Mat Min Sub Used RIF Installer . | . . . . Robots Hacked . | . . . . Non-combat . | . . . . Combat . | . . . . Robot Hacks Applied . | . . . . Relay Couplers Released . | . . . . Fabnet Peak Effective % . | . . . . Robots Rewired . | . . . . Allies Hacked . | . . . . Hacks Repelled . | . . . . Allies | -11 -10 -10 -10 -------- Run | Yrd Mat Min Sub Total Allies . | . . . . Largest Group . | . . . . Highest-Rated Group . | . . . . Highest-Rated Ally . | . . . . Total Orders . | . . . . Ally Attacks . | . . . . Total Damage . | . . . . Kills . | . . . . Allies Corrupted . | . . . . Allies Melted . | . . . . Intel | -11 -10 -10 -10 ------- Run | Yrd Mat Min Sub Active Infowar (turns) 1167 | . 339 716 112 Terrain 1167 | . 339 716 112 Robot Analysis Total . | . . . . Derelict Logs Recovered 1 | . . 1 . Drone Launches . | . . . . Drone Recoveries . | . . . . Exploration | -11 -10 -10 -10 ------------- Run | Yrd Mat Min Sub Turns Passed 2234 | 83 543 938 670 Spaces Moved 995 | 41 260 363 331 Core 105 | 41 64 . . Treads 391 | . . 60 331 Legs 125 | . 125 . . Wheels 374 | . 71 303 . Hover . | . . . . Flight . | . . . . Fastest Speed 50 | 50 90 105 160 Average Speed 138 | 152 141 114 160 Slowest Speed 250 | 200 250 160 160 Overloaded Moves . | . . . . Propulsion Burnouts . | . . . . Robots Hopped . | . . . . Potential Cave-ins . | . . . . Cave-ins Triggered . | . . . . Exploration Rate (%) 35 | 4 44 73 20 Regions Visited 3 Branch Regions 2 Pre-discovered Areas . | . . . . Known Exits Taken . | . . . . Unknown Exits Taken 3 | 1 1 1 . Scrap Searched 3 | . . 3 . Spaces Dug . | . . . . Terrain Destroyed 34 | . 2 32 . Melee . | . . . . Projectile . | . . . . AOE 34 | . 2 32 . Terrain Rammed . | . . . . Walls Destroyed . | . . . . Machines Disabled . | . . . . Actions | -11 -10 -10 -10 --------- Run | Yrd Mat Min Sub Total 1702 | 63 347 839 453 Wait 559 | 5 17 440 97 Move 992 | 40 259 362 331 Hop . | . . . . Pick Up 31 | 12 7 4 8 Fast Attach 3 | . 3 . . Attach 17 | 5 5 5 2 Detach 2 | 1 . 1 . Swap 8 | . 4 2 2 Drop 6 | . 5 . 1 Fire 84 | . 47 25 12 Melee . | . . . . Ram . | . . . . Kick . | . . . . Crush . | . . . . Escape Stasis . | . . . . Rewire . | . . . . Trap . | . . . . Miscellaneous . | . . . . Route ------- -11/Scrapyard -10/Materials -10/Mines (discovered 2 exits: *Mat / [*Sub]) -10/Subcaves History --------- Turn | Location | Event 25 | -11/Scrapyard | Discovered new exit (range 16) 84 | -11/Scrapyard | Entered Materials 305 | -10/Materials | Build established: Mutant 598 | -10/Materials | Discovered new exit (range 13) 627 | -10/Materials | Entered Mines 653 | -10/Mines | Met a Derelict bent on vengeance 1176 | -10/Mines | Identified exit to Materials 1234 | -10/Mines | Received a Rocket Launcher from a helpful Derelict 1342 | -10/Mines | Core integrity fell below 50% 1398 | -10/Mines | Assembled infested the area 1450 | -10/Mines | Destroyed 7 combat bots 1463 | -10/Mines | Lost 4 parts (1p2n1w) 1507 | -10/Mines | Discovered new exit (range 10) 1565 | -10/Mines | Entered Subcaves 1671 | -10/Subcaves | A swath of the cavern ceiling suddenly collapsed 1892 | -10/Subcaves | Ambushed by swarm of Subdwellers 1953 | -10/Subcaves | Shifting Twisted Machinery released Barrage Gun 1959 | -10/Subcaves | Lost 4 allies 2012 | -10/Subcaves | Core integrity fell below 20% 2235 | -10/Subcaves | Destroyed by 8A-R6L(R) with Subdweller Machine Gun Last Messages --------------- 01902_ Acquired 4 matter. 01906_ M3-P1I(h) destroyed. 01912_ T9-O46(R) destroyed. 01912_ 6L-HSU(g) destroyed. 01915_ ET-3Z5(g) destroyed. 01919_ 00-S14(R) destroyed. 01920_ Subatomizers dissect the Sub. Beam Cannon. 01928_ 9R-ZJ2(R) affixes Scrap Shield Fragment to Scrap Shield. Barrage Gun falls loose from the Twisted Machinery. 01958_ Acquired Barrage Gun. 01975_ Shotgun destroyed. 02032_ TC-83Q(R) destroyed. 02045_ 9R-ZJ2(R) affixes Scrap Shield Fragment to Scrap Shield. 02045_ 9R-ZJ2(R) destroyed. 02049_ Dropped Ion Engine. 02055_ Acquired Sub. Monowheel. 02057_ Acquired 32 matter. 02061_ Acquired Sub. Optics. 02065_ Acquired Sub. Laser. 02066_ Acquired 42 matter. Map ----- +----------------------------------------------------+ | ????????????# #### # #????????????????????? | | ????????????# #????????????????????? | | ???????###### #????????????????????? | | ??????## "#????????????????????? | | ?????## #### ""#??? ???????????????? | | ???### #??###""#?#? ? ????????????? | | ?### #?????""#?? ???????????? | | ?# ##### ##????""#?? "??????????? | | ?## ##??# ##??? #?# """""??????? | | ??# #??## ## ##??? ## ?????? | | ??# ### #### ##?? ?????? | | ??# ## #?## ##?# ??????? | | ??#### ### #??# #?# ???????? | | ?????## #?# #### #?# ? ##???????? | | ??????####?# # ##?# #?? #?????????? | | ???????????# #### ###??# #??# #??????????? | | ???????????#### ##"?## #?#### #?## ##?????????? | | ???????????#### #????# ### ## ### #?????????? | | ??????????## # #????# # ## #?????????? | | ????????### ##??## ## #?#????????? | | ???????## #### R## ###??????????? | | ???????# # ## ##???????????? | | ???????# ###### ### #???????????? | | ???????# ##?#### ### #?????????? | | ???????## #?## #?# ##?????????? | | ????????##"" ##?# @ #?## ##?????#????? | | ?????????##" #??# #??### #???????????? | | ??????????## ## #### #????## #???#???????? | | ???????????##### ## #??????###???????????? | | ??????????## # # #????????????????????? | | ??????????# ##### #????????????????????? | | ??????????# ## #???## ????????????????????? | | ???????????# ??## #????# ?#?????????????????? | | ??????????""????# #????## ???????????????????? | | ????????? ?????## #??????# ##??????????????????? | | ??#?????#??????# ##??????###?????????#?????????? | | ?? ##?????????## ######?????????#??"#?????????? | | ?? "#?????????# ### ####???????? "#?????????? | | ?? "##??????### ## "" ###?????#""#?????????? | | #?# ##?????#" """"####?# "#??????????? | | ### ###?### # ## ""#??????????? | | # #?# " " #??????????? | | ## ### & ![""" ##?????????? | | ## """"" *%*"&" "#?????????? | | # ######## ##" ##=*!!%"" "#?????????? | | ## #??????## "#########%]#=% ###?????????? | | ##?????# " ###?## [&%[###???????????? | | ###???#### ## ## ##*"#????????????? | | ## ######## ## #? ##????????????? | | #### ## #"" ? ?????????????? | +----------------------------------------------------+ Best States ------------- Heat Dissipation 25 Energy Generation 14 Energy Capacity 250 Matter Stores 300 Matter Capacity 300 Sight Range 16 Terrain Scan Range 16 Terrain Scan Density 10 Evasion (%) 55 Recoil Reduction 2 Item Schematics ----------------- None Robot Schematics ------------------ None Fabricated ------------ Nothing Repaired ---------- Nothing Studied --------- None Alien Tech Used ----------------- None Achievements -------------- Quick And Dirty Challenges ------------ None Game ------ Seed ReflexMassImpeller Manual? 0 Play Time 00:24:18 Cumulative 22.1 hours Start 2026.07.31 @ 01:04:44 End 2026.07.31 @ 01:29:42 Sessions 1 Manual Loads 0 Difficulty Rogue Special Mode None Game No. 18 Rogue 16 Adventurer 2 Explorer 0 Win Type - Total 0 Types 0/0/0/0/0/0/0/0/0/0 Lore% 18 Gallery% 14 Achievement% 15 Wizard Run 0 Options --------- Layout 0 ASCII 0 Keyboard 0 Movement Mouse Keybinds 0 Fullscreen 2 Font 24/Smallcaps Map View 76x50 Zoom Use 0% Tactical HUD 1 Map Filters NONE Filters NONE Steam 1 RUN: 0cd6dd5c-48bc-4bf5-a760-6ffe0d8a40fa